[Event "Titled Tuesday Blitz May 16 Late 2023"]
[White "Pap, Gyula"]
[Black "K2JW"]
[WhiteFideId "725323"]
[WhiteElo "2519"]
[BlackElo "2385"]
[Result "1-0"]
[Round "02"]
[TimeControl "180+2"]
[Date "2023.05.16"]
[WhiteClock "0:00:15"]
[BlackClock "0:00:01"]

1. e4 {[%clk 0:03:00]}  c5 {[%clk 0:02:09]} 2. Nf3 {[%clk 0:02:58]}  Nc6 {[%clk 0:02:06]} 3. d4 {[%clk 0:02:53]}  cxd4 {[%clk 0:02:03]} 4. Nxd4 {[%clk 0:02:54]}  Nf6 {[%clk 0:02:04]} 5. Nc3 {[%clk 0:02:53]}  d6 {[%clk 0:02:03]} 6. Bg5 {[%clk 0:02:49]}  e6 {[%clk 0:02:02]} 7. Qd2 {[%clk 0:02:47]}  a6 {[%clk 0:02:00]} 8. O-O-O {[%clk 0:02:46]}  h6 {[%clk 0:01:55]} 9. Be3 {[%clk 0:02:18]}  Bd7 {[%clk 0:01:44]} 10. f3 {[%clk 0:02:16]}  b5 {[%clk 0:01:40]} 11. Nxc6 {[%clk 0:02:01]}  Bxc6 {[%clk 0:01:40]} 12. Ne2 {[%clk 0:02:00]}  Qc7 {[%clk 0:01:08]} 13. Nd4 {[%clk 0:01:53]}  Bb7 {[%clk 0:01:08]} 14. Kb1 {[%clk 0:01:52]}  d5 {[%clk 0:01:05]} 15. e5 {[%clk 0:01:52]}  Nd7 {[%clk 0:00:58]} 16. f4 {[%clk 0:01:52]}  O-O-O {[%clk 0:00:50]} 17. Qe1 {[%clk 0:01:36]}  Nc5 {[%clk 0:00:42]} 18. h4 {[%clk 0:01:33]}  Ne4 {[%clk 0:00:40]} 19. Rh3 {[%clk 0:01:34]}  Bc5 {[%clk 0:00:37]} 20. Nb3 {[%clk 0:01:30]}  Bxe3 {[%clk 0:00:30]} 21. Rxe3 {[%clk 0:01:31]}  Kb8 {[%clk 0:00:29]} 22. Rd4 {[%clk 0:01:22]}  Rc8 {[%clk 0:00:26]} 23. Bd3 {[%clk 0:01:23]}  Nc5 {[%clk 0:00:26]} 24. a3 {[%clk 0:01:16]}  Nxb3 {[%clk 0:00:24]} 25. cxb3 {[%clk 0:01:16]}  Qb6 {[%clk 0:00:22]} 26. Qb4 {[%clk 0:01:13]}  a5 {[%clk 0:00:20]} 27. Qd6+ {[%clk 0:01:13]}  Qxd6 {[%clk 0:00:18]} 28. exd6 {[%clk 0:01:14]}  Bc6 {[%clk 0:00:17]} 29. f5 {[%clk 0:01:13]}  Rhe8 {[%clk 0:00:11]} 30. Rg4 {[%clk 0:01:13]}  e5 {[%clk 0:00:10]} 31. Rxg7 {[%clk 0:01:13]}  e4 {[%clk 0:00:11]} 32. Bf1 {[%clk 0:01:09]}  d4 {[%clk 0:00:11]} 33. Re1 {[%clk 0:01:09]}  e3 {[%clk 0:00:12]} 34. Rxf7 {[%clk 0:01:08]}  Rcd8 {[%clk 0:00:12]} 35. Bd3 {[%clk 0:01:05]}  Rxd6 {[%clk 0:00:12]} 36. Ka2 {[%clk 0:00:39]}  Bd5 {[%clk 0:00:11]} 37. g4 {[%clk 0:00:37]}  a4 {[%clk 0:00:11]} 38. g5 {[%clk 0:00:37]}  Bxf7 {[%clk 0:00:11]} 39. g6 {[%clk 0:00:36]}  Bxb3+ {[%clk 0:00:12]} 40. Kb1 {[%clk 0:00:37]}  Rf6 {[%clk 0:00:11]} 41. h5 {[%clk 0:00:36]}  Bc4 {[%clk 0:00:12]} 42. Kc2 {[%clk 0:00:36]}  Rc6 {[%clk 0:00:11]} 43. Rg1 {[%clk 0:00:33]}  Bxd3+ {[%clk 0:00:11]} 44. Kxd3 {[%clk 0:00:34]}  e2 {[%clk 0:00:11]} 45. f6 {[%clk 0:00:26]}  e1=Q {[%clk 0:00:11]} 46. Rxe1 {[%clk 0:00:26]}  Rxe1 {[%clk 0:00:11]} 47. f7 {[%clk 0:00:16]}  Rf1 {[%clk 0:00:09]} 48. g7 {[%clk 0:00:17]}  Rc8 {[%clk 0:00:04]} 49. g8=Q {[%clk 0:00:16]}  Kb7 {[%clk 0:00:03]} 50. Qg2+ {[%clk 0:00:14]}  Kb6 {[%clk 0:00:01]} 51. Qxf1 {[%clk 0:00:15]} 1-0


[Site "https://www.chess.com"]

[Event "Titled Tuesday Blitz May 16 Late 2023"]
[White "FromTexas54"]
[Black "Grigorov, Grigor"]
[BlackFideId "2907313"]
[WhiteElo "2378"]
[BlackElo "2510"]
[Result "0-1"]
[Round "02"]
[TimeControl "180+2"]
[Date "2023.05.16"]
[WhiteClock "0:00:12"]
[BlackClock "0:00:19"]

1. d4 {[%clk 0:03:00]}  Nf6 {[%clk 0:02:59]} 2. c4 {[%clk 0:03:00]}  e6 {[%clk 0:03:00]} 3. Nf3 {[%clk 0:03:00]}  b6 {[%clk 0:02:59]} 4. g3 {[%clk 0:02:59]}  Bb7 {[%clk 0:02:59]} 5. Bg2 {[%clk 0:02:59]}  Be7 {[%clk 0:03:00]} 6. O-O {[%clk 0:02:58]}  O-O {[%clk 0:03:00]} 7. d5 {[%clk 0:02:58]}  exd5 {[%clk 0:03:00]} 8. Nh4 {[%clk 0:02:58]}  c6 {[%clk 0:03:01]} 9. Nf5 {[%clk 0:02:56]}  dxc4 {[%clk 0:02:52]} 10. e4 {[%clk 0:02:55]}  d5 {[%clk 0:02:49]} 11. e5 {[%clk 0:02:55]}  Ne8 {[%clk 0:02:19]} 12. Qg4 {[%clk 0:02:53]}  Kh8 {[%clk 0:02:15]} 13. Nc3 {[%clk 0:02:25]}  Bc8 {[%clk 0:02:12]} 14. Qf4 {[%clk 0:02:16]}  Be6 {[%clk 0:02:03]} 15. h4 {[%clk 0:02:10]}  Nd7 {[%clk 0:02:02]} 16. Re1 {[%clk 0:02:06]}  Nc5 {[%clk 0:02:02]} 17. Bf1 {[%clk 0:01:49]}  g6 {[%clk 0:01:42]} 18. Nxe7 {[%clk 0:01:46]}  Qxe7 {[%clk 0:01:41]} 19. Qh6 {[%clk 0:01:42]}  Rg8 {[%clk 0:01:27]} 20. b4 {[%clk 0:01:15]}  cxb3 {[%clk 0:01:25]} 21. axb3 {[%clk 0:01:16]}  Nxb3 {[%clk 0:01:20]} 22. Ba3 {[%clk 0:01:17]}  c5 {[%clk 0:01:15]} 23. Rab1 {[%clk 0:01:16]}  Nd4 {[%clk 0:01:13]} 24. Bg2 {[%clk 0:01:13]}  Rd8 {[%clk 0:01:08]} 25. Bb2 {[%clk 0:01:10]}  Ng7 {[%clk 0:01:05]} 26. Qf4 {[%clk 0:01:02]}  Nh5 {[%clk 0:00:59]} 27. Qh6 {[%clk 0:00:59]}  Ng7 {[%clk 0:00:34]} 28. Rbd1 {[%clk 0:00:52]}  Ngf5 {[%clk 0:00:34]} 29. Qf4 {[%clk 0:00:51]}  g5 {[%clk 0:00:33]} 30. hxg5 {[%clk 0:00:46]}  Qxg5 {[%clk 0:00:34]} 31. Qxg5 {[%clk 0:00:43]}  Rxg5 {[%clk 0:00:34]} 32. Ne2 {[%clk 0:00:39]}  Nxe2+ {[%clk 0:00:33]} 33. Rxe2 {[%clk 0:00:40]}  d4 {[%clk 0:00:33]} 34. Ra1 {[%clk 0:00:36]}  a5 {[%clk 0:00:31]} 35. Bc1 {[%clk 0:00:36]}  Rgg8 {[%clk 0:00:27]} 36. Rb2 {[%clk 0:00:37]}  d3 {[%clk 0:00:25]} 37. Bf4 {[%clk 0:00:33]}  c4 {[%clk 0:00:24]} 38. Rxb6 {[%clk 0:00:31]}  c3 {[%clk 0:00:23]} 39. Rc6 {[%clk 0:00:28]}  d2 {[%clk 0:00:22]} 40. Bf3 {[%clk 0:00:22]}  Nd4 {[%clk 0:00:18]} 41. Rxc3 {[%clk 0:00:14]}  Nxf3+ {[%clk 0:00:18]} 42. Rxf3 {[%clk 0:00:15]}  d1=Q+ {[%clk 0:00:19]} 43. Rxd1 {[%clk 0:00:15]}  Rxd1+ {[%clk 0:00:19]} 44. Kg2 {[%clk 0:00:12]}  Bd5 {[%clk 0:00:19]} 0-1


[Site "https://www.chess.com"]

[Event "Titled Tuesday Blitz May 16 Late 2023"]
[White "Harshavardhan G B"]
[Black "Ramirez Vido, Robert Yorisan"]
[WhiteFideId "25059009"]
[BlackFideId "3513823"]
[WhiteElo "2323"]
[BlackElo "2369"]
[Result "1-0"]
[Round "02"]
[TimeControl "180+2"]
[Date "2023.05.16"]
[WhiteClock "0:00:19"]
[BlackClock "0:00:00"]

1. e4 {[%clk 0:03:00]}  d6 {[%clk 0:02:59]} 2. d4 {[%clk 0:02:58]}  Nf6 {[%clk 0:03:00]} 3. Nc3 {[%clk 0:02:57]}  g6 {[%clk 0:03:00]} 4. Be3 {[%clk 0:02:52]}  c6 {[%clk 0:03:00]} 5. Qd2 {[%clk 0:02:48]}  b5 {[%clk 0:02:59]} 6. a3 {[%clk 0:02:48]}  Nbd7 {[%clk 0:02:58]} 7. Nf3 {[%clk 0:02:39]}  Qc7 {[%clk 0:02:55]} 8. h3 {[%clk 0:02:36]}  Bg7 {[%clk 0:02:55]} 9. Bh6 {[%clk 0:02:35]}  O-O {[%clk 0:02:53]} 10. Bd3 {[%clk 0:02:33]}  e5 {[%clk 0:02:38]} 11. dxe5 {[%clk 0:02:30]}  Nxe5 {[%clk 0:02:36]} 12. Nxe5 {[%clk 0:02:29]}  dxe5 {[%clk 0:02:37]} 13. Ne2 {[%clk 0:02:19]}  Rd8 {[%clk 0:02:34]} 14. Ng3 {[%clk 0:02:18]}  c5 {[%clk 0:02:25]} 15. Qg5 {[%clk 0:02:13]}  c4 {[%clk 0:02:21]} 16. Be2 {[%clk 0:02:13]}  Bh8 {[%clk 0:02:09]} 17. O-O {[%clk 0:02:10]}  Bb7 {[%clk 0:02:02]} 18. Bf3 {[%clk 0:02:08]}  Nd7 {[%clk 0:01:47]} 19. Rad1 {[%clk 0:01:49]}  Nc5 {[%clk 0:01:47]} 20. Nh5 {[%clk 0:01:40]}  Qb6 {[%clk 0:01:26]} 21. Rfe1 {[%clk 0:01:14]}  f6 {[%clk 0:01:17]} 22. Qg4 {[%clk 0:00:54]}  Bc8 {[%clk 0:01:08]} 23. Qg3 {[%clk 0:00:51]}  Kf7 {[%clk 0:01:04]} 24. Rxd8 {[%clk 0:00:39]}  Qxd8 {[%clk 0:01:02]} 25. Rd1 {[%clk 0:00:40]}  Qe7 {[%clk 0:00:47]} 26. Qh4 {[%clk 0:00:31]}  Ne6 {[%clk 0:00:23]} 27. Ng3 {[%clk 0:00:28]}  Bb7 {[%clk 0:00:16]} 28. Be3 {[%clk 0:00:27]}  a6 {[%clk 0:00:14]} 29. Qxh7+ {[%clk 0:00:27]}  Bg7 {[%clk 0:00:13]} 30. Qh4 {[%clk 0:00:20]}  Rh8 {[%clk 0:00:11]} 31. Qg4 {[%clk 0:00:20]}  Bc8 {[%clk 0:00:12]} 32. Nf5 {[%clk 0:00:20]}  gxf5 {[%clk 0:00:10]} 33. exf5 {[%clk 0:00:21]}  Nd4 {[%clk 0:00:09]} 34. Bd5+ {[%clk 0:00:20]}  Kf8 {[%clk 0:00:08]} 35. Be4 {[%clk 0:00:21]}  Bd7 {[%clk 0:00:03]} 36. c3 {[%clk 0:00:21]}  Nb3 {[%clk 0:00:02]} 37. Qf3 {[%clk 0:00:21]}  Be8 {[%clk 0:00:02]} 38. Bd5 {[%clk 0:00:21]}  Bh5 {[%clk 0:00:02]} 39. g4 {[%clk 0:00:20]}  Bxg4 {[%clk 0:00:02]} 40. Qxg4 {[%clk 0:00:20]}  Rh7 {[%clk 0:00:02]} 41. Kf1 {[%clk 0:00:20]}  Bh6 {[%clk 0:00:00]} 42. Bxh6+ {[%clk 0:00:19]} 1-0


[Site "https://www.chess.com"]

[Event "Titled Tuesday Blitz May 16 Late 2023"]
[White "Djokic, Mihailo"]
[Black "Kaganskiy, Gleb"]
[WhiteFideId "976440"]
[BlackFideId "4132025"]
[WhiteElo "2294"]
[BlackElo "2165"]
[Result "1-0"]
[Round "02"]
[TimeControl "180+2"]
[Date "2023.05.16"]
[WhiteClock "0:01:41"]
[BlackClock "0:00:00"]

1. e4 {[%clk 0:03:00]}  c6 {[%clk 0:02:58]} 2. d4 {[%clk 0:03:00]}  d5 {[%clk 0:02:59]} 3. e5 {[%clk 0:03:01]}  Bf5 {[%clk 0:02:58]} 4. h4 {[%clk 0:03:01]}  h5 {[%clk 0:02:57]} 5. Bg5 {[%clk 0:03:00]}  Qb6 {[%clk 0:02:49]} 6. Bd3 {[%clk 0:03:00]}  Bxd3 {[%clk 0:02:47]} 7. Qxd3 {[%clk 0:03:01]}  Qa6 {[%clk 0:02:42]} 8. Qxa6 {[%clk 0:02:56]}  Nxa6 {[%clk 0:02:41]} 9. e6 {[%clk 0:02:56]}  fxe6 {[%clk 0:02:35]} 10. Nf3 {[%clk 0:02:37]}  c5 {[%clk 0:02:04]} 11. Nc3 {[%clk 0:02:26]}  cxd4 {[%clk 0:01:57]} 12. Nb5 {[%clk 0:02:22]}  Rc8 {[%clk 0:01:57]} 13. Nbxd4 {[%clk 0:02:22]}  Nb4 {[%clk 0:01:39]} 14. Kd2 {[%clk 0:02:16]}  Nf6 {[%clk 0:01:35]} 15. c3 {[%clk 0:02:16]}  Ne4+ {[%clk 0:01:34]} 16. Ke3 {[%clk 0:02:16]}  Nc6 {[%clk 0:00:58]} 17. Nxe6 {[%clk 0:02:16]}  g6 {[%clk 0:00:52]} 18. Rad1 {[%clk 0:02:13]}  Kf7 {[%clk 0:00:28]} 19. Nf4 {[%clk 0:01:55]}  e6 {[%clk 0:00:20]} 20. Nd3 {[%clk 0:01:48]}  Bd6 {[%clk 0:00:15]} 21. Bf4 {[%clk 0:01:49]}  Rhd8 {[%clk 0:00:05]} 22. Bxd6 {[%clk 0:01:49]}  Rxd6 {[%clk 0:00:05]} 23. Rhe1 {[%clk 0:01:47]}  Rf8 {[%clk 0:00:03]} 24. Nd2 {[%clk 0:01:42]}  Nxd2 {[%clk 0:00:03]} 25. Kxd2 {[%clk 0:01:42]}  e5 {[%clk 0:00:03]} 26. Nxe5+ {[%clk 0:01:42]}  Nxe5 {[%clk 0:00:04]} 27. Rxe5 {[%clk 0:01:42]}  d4 {[%clk 0:00:04]} 28. c4 {[%clk 0:01:42]}  Kf6 {[%clk 0:00:00]} 29. Re4 {[%clk 0:01:41]} 1-0


[Site "https://www.chess.com"]

[Event "Titled Tuesday Blitz May 16 Late 2023"]
[White "Sun, Rick"]
[Black "a-z30"]
[WhiteFideId "30909481"]
[WhiteElo "2169"]
[BlackElo "2367"]
[Result "1-0"]
[Round "02"]
[TimeControl "180+2"]
[Date "2023.05.16"]
[WhiteClock "0:00:19"]
[BlackClock "0:00:07"]

1. e4 {[%clk 0:03:00]}  d6 {[%clk 0:03:00]} 2. d4 {[%clk 0:03:00]}  Nf6 {[%clk 0:03:00]} 3. Nc3 {[%clk 0:03:01]}  g6 {[%clk 0:03:00]} 4. Nf3 {[%clk 0:03:00]}  Bg7 {[%clk 0:03:00]} 5. Bc4 {[%clk 0:02:58]}  O-O {[%clk 0:03:00]} 6. h4 {[%clk 0:02:58]}  Bg4 {[%clk 0:02:58]} 7. Bg5 {[%clk 0:02:56]}  Nxe4 {[%clk 0:02:40]} 8. Nxe4 {[%clk 0:02:47]}  d5 {[%clk 0:02:40]} 9. Bd3 {[%clk 0:02:36]}  dxe4 {[%clk 0:02:39]} 10. Bxe4 {[%clk 0:02:37]}  Nd7 {[%clk 0:01:54]} 11. h5 {[%clk 0:02:17]}  c5 {[%clk 0:01:35]} 12. hxg6 {[%clk 0:02:10]}  hxg6 {[%clk 0:01:34]} 13. Qd2 {[%clk 0:01:31]}  Nf6 {[%clk 0:01:25]} 14. Bd3 {[%clk 0:01:27]}  Bxf3 {[%clk 0:01:03]} 15. gxf3 {[%clk 0:01:28]}  Qxd4 {[%clk 0:00:54]} 16. c3 {[%clk 0:01:18]}  Qe5+ {[%clk 0:00:46]} 17. Be3 {[%clk 0:01:18]}  Rfd8 {[%clk 0:00:28]} 18. Qe2 {[%clk 0:01:03]}  Nd5 {[%clk 0:00:16]} 19. Rd1 {[%clk 0:00:33]}  Nf4 {[%clk 0:00:16]} 20. Bxf4 {[%clk 0:00:32]}  Qxf4 {[%clk 0:00:17]} 21. Rg1 {[%clk 0:00:30]}  Rd6 {[%clk 0:00:16]} 22. Rg4 {[%clk 0:00:30]}  Qf6 {[%clk 0:00:15]} 23. Re4 {[%clk 0:00:29]}  e6 {[%clk 0:00:13]} 24. Bc4 {[%clk 0:00:27]}  Rad8 {[%clk 0:00:13]} 25. Rxd6 {[%clk 0:00:25]}  Rxd6 {[%clk 0:00:14]} 26. a4 {[%clk 0:00:26]}  Qg5 {[%clk 0:00:14]} 27. f4 {[%clk 0:00:24]}  Qg1+ {[%clk 0:00:13]} 28. Qf1 {[%clk 0:00:24]}  Qxf1+ {[%clk 0:00:13]} 29. Bxf1 {[%clk 0:00:22]}  b6 {[%clk 0:00:13]} 30. a5 {[%clk 0:00:22]}  Kf8 {[%clk 0:00:14]} 31. axb6 {[%clk 0:00:23]}  Rxb6 {[%clk 0:00:10]} 32. Re2 {[%clk 0:00:23]}  a5 {[%clk 0:00:10]} 33. Kd1 {[%clk 0:00:22]}  a4 {[%clk 0:00:10]} 34. Kc2 {[%clk 0:00:23]}  Ke7 {[%clk 0:00:10]} 35. Re1 {[%clk 0:00:22]}  Bh6 {[%clk 0:00:06]} 36. Re4 {[%clk 0:00:22]}  a3 {[%clk 0:00:05]} 37. bxa3 {[%clk 0:00:23]}  Rd6 {[%clk 0:00:04]} 38. a4 {[%clk 0:00:22]}  Kf6 {[%clk 0:00:04]} 39. a5 {[%clk 0:00:22]}  Rd7 {[%clk 0:00:04]} 40. a6 {[%clk 0:00:20]}  Rc7 {[%clk 0:00:04]} 41. Bd3 {[%clk 0:00:20]}  Bf8 {[%clk 0:00:03]} 42. Rc4 {[%clk 0:00:20]}  Bd6 {[%clk 0:00:04]} 43. Ra4 {[%clk 0:00:20]}  Ra7 {[%clk 0:00:04]} 44. Be4 {[%clk 0:00:20]}  Bxf4 {[%clk 0:00:03]} 45. Bb7 {[%clk 0:00:20]}  Bd6 {[%clk 0:00:03]} 46. Kd3 {[%clk 0:00:21]}  Ke7 {[%clk 0:00:04]} 47. Kc4 {[%clk 0:00:21]}  Kd8 {[%clk 0:00:04]} 48. Kb5 {[%clk 0:00:21]}  Kc7 {[%clk 0:00:05]} 49. Re4 {[%clk 0:00:21]}  Rxb7+ {[%clk 0:00:05]} 50. axb7 {[%clk 0:00:22]}  Kxb7 {[%clk 0:00:06]} 51. Re3 {[%clk 0:00:20]}  Kc7 {[%clk 0:00:07]} 52. Rf3 {[%clk 0:00:21]}  Kd7 {[%clk 0:00:08]} 53. Rxf7+ {[%clk 0:00:20]}  Be7 {[%clk 0:00:08]} 54. Rg7 {[%clk 0:00:20]}  Kd6 {[%clk 0:00:09]} 55. Rxg6 {[%clk 0:00:20]}  Ke5 {[%clk 0:00:09]} 56. Kc4 {[%clk 0:00:20]}  Kf5 {[%clk 0:00:08]} 57. Rg7 {[%clk 0:00:20]}  Bd6 {[%clk 0:00:09]} 58. Rd7 {[%clk 0:00:20]}  Ke5 {[%clk 0:00:07]} 59. f4+ {[%clk 0:00:19]} 1-0


[Site "https://www.chess.com"]

[Event "Titled Tuesday Blitz May 16 Late 2023"]
[White "Shapiro, Daniel"]
[Black "Arabidze, Meri"]
[WhiteFideId "2001780"]
[BlackFideId "13604040"]
[WhiteElo "2362"]
[BlackElo "2405"]
[Result "1/2-1/2"]
[Round "02"]
[TimeControl "180+2"]
[Date "2023.05.16"]
[WhiteClock "0:00:08"]
[BlackClock "0:00:06"]

1. d4 {[%clk 0:03:00]}  f5 {[%clk 0:02:59]} 2. Nf3 {[%clk 0:02:51]}  Nf6 {[%clk 0:02:59]} 3. c4 {[%clk 0:02:45]}  e6 {[%clk 0:02:59]} 4. Bf4 {[%clk 0:02:40]}  b6 {[%clk 0:02:59]} 5. a3 {[%clk 0:02:37]}  Bb7 {[%clk 0:02:59]} 6. Nc3 {[%clk 0:02:36]}  Be7 {[%clk 0:02:59]} 7. h3 {[%clk 0:02:33]}  O-O {[%clk 0:02:59]} 8. e3 {[%clk 0:02:34]}  h6 {[%clk 0:02:51]} 9. Be2 {[%clk 0:02:34]}  d6 {[%clk 0:02:52]} 10. Qc2 {[%clk 0:02:33]}  Nbd7 {[%clk 0:02:50]} 11. O-O-O {[%clk 0:02:33]}  Ne4 {[%clk 0:02:48]} 12. Bd3 {[%clk 0:02:20]}  Ndf6 {[%clk 0:02:45]} 13. Rhg1 {[%clk 0:02:18]}  c5 {[%clk 0:02:38]} 14. Bh2 {[%clk 0:01:53]}  Rc8 {[%clk 0:02:35]} 15. Kb1 {[%clk 0:01:52]}  a6 {[%clk 0:02:34]} 16. Ne2 {[%clk 0:01:45]}  b5 {[%clk 0:02:31]} 17. Nf4 {[%clk 0:01:43]}  Qd7 {[%clk 0:02:25]} 18. d5 {[%clk 0:01:39]}  exd5 {[%clk 0:02:22]} 19. cxd5 {[%clk 0:01:39]}  c4 {[%clk 0:02:13]} 20. Bxe4 {[%clk 0:01:36]}  Nxe4 {[%clk 0:02:07]} 21. Nd4 {[%clk 0:01:26]}  c3 {[%clk 0:01:58]} 22. b3 {[%clk 0:01:18]}  Bf6 {[%clk 0:01:56]} 23. g4 {[%clk 0:01:17]}  fxg4 {[%clk 0:01:52]} 24. Qxe4 {[%clk 0:01:14]}  Rfe8 {[%clk 0:01:28]} 25. Nfe6 {[%clk 0:01:07]}  gxh3 {[%clk 0:01:09]} 26. Kc2 {[%clk 0:01:03]}  a5 {[%clk 0:00:59]} 27. Rg4 {[%clk 0:00:56]}  Rc5 {[%clk 0:00:40]} 28. Qg6 {[%clk 0:00:46]}  Kh8 {[%clk 0:00:20]} 29. Rdg1 {[%clk 0:00:43]}  Bxd5 {[%clk 0:00:16]} 30. Nxg7 {[%clk 0:00:35]}  Bxg7 {[%clk 0:00:09]} 31. Qxg7+ {[%clk 0:00:35]}  Qxg7 {[%clk 0:00:09]} 32. Rxg7 {[%clk 0:00:36]}  Be4+ {[%clk 0:00:09]} 33. Kc1 {[%clk 0:00:34]}  b4 {[%clk 0:00:08]} 34. a4 {[%clk 0:00:33]}  Rd5 {[%clk 0:00:04]} 35. Ra7 {[%clk 0:00:26]}  Bd3 {[%clk 0:00:03]} 36. Rgg7 {[%clk 0:00:24]}  Rxd4 {[%clk 0:00:03]} 37. Bf4 {[%clk 0:00:14]}  Rd5 {[%clk 0:00:03]} 38. Bxh6 {[%clk 0:00:12]}  Be2 {[%clk 0:00:03]} 39. Bf4 {[%clk 0:00:11]}  Rd1+ {[%clk 0:00:03]} 40. Kc2 {[%clk 0:00:11]}  Rd2+ {[%clk 0:00:04]} 41. Kc1 {[%clk 0:00:11]}  Bd3 {[%clk 0:00:04]} 42. Rg3 {[%clk 0:00:08]}  Rc2+ {[%clk 0:00:04]} 43. Kd1 {[%clk 0:00:08]}  Rd2+ {[%clk 0:00:05]} 44. Kc1 {[%clk 0:00:09]}  Bf5 {[%clk 0:00:05]} 45. Rg5 {[%clk 0:00:08]}  Rc2+ {[%clk 0:00:05]} 46. Kd1 {[%clk 0:00:08]}  Rd2+ {[%clk 0:00:05]} 47. Kc1 {[%clk 0:00:09]}  Rc2+ {[%clk 0:00:05]} 48. Kd1 {[%clk 0:00:09]}  Bd3 {[%clk 0:00:04]} 49. Rh5+ {[%clk 0:00:08]}  Kg8 {[%clk 0:00:04]} 50. Rg5+ {[%clk 0:00:08]}  Kh8 {[%clk 0:00:05]} 51. Rh5+ {[%clk 0:00:08]}  Kg8 {[%clk 0:00:05]} 52. Rg5+ {[%clk 0:00:08]}  Kh8 {[%clk 0:00:06]} 1/2-1/2


[Site "https://www.chess.com"]

[Event "Titled Tuesday Blitz May 16 Late 2023"]
[White "Filgueira, Hernan"]
[Black "Hoffmann, Asa"]
[WhiteFideId "101770"]
[BlackFideId "2001470"]
[WhiteElo "2363"]
[BlackElo "2117"]
[Result "1-0"]
[Round "02"]
[TimeControl "180+2"]
[Date "2023.05.16"]
[WhiteClock "0:00:12"]
[BlackClock "0:00:04"]

1. c4 {[%clk 0:02:56]}  Nf6 {[%clk 0:02:58]} 2. Nc3 {[%clk 0:02:56]}  d6 {[%clk 0:02:58]} 3. g3 {[%clk 0:02:55]}  c6 {[%clk 0:02:58]} 4. Bg2 {[%clk 0:02:55]}  e5 {[%clk 0:02:58]} 5. d3 {[%clk 0:02:56]}  Be6 {[%clk 0:02:58]} 6. Nf3 {[%clk 0:02:56]}  h6 {[%clk 0:02:56]} 7. Rb1 {[%clk 0:02:55]}  Qd7 {[%clk 0:02:55]} 8. b4 {[%clk 0:02:52]}  Be7 {[%clk 0:02:54]} 9. b5 {[%clk 0:02:52]}  O-O {[%clk 0:02:54]} 10. O-O {[%clk 0:02:50]}  Bh3 {[%clk 0:02:53]} 11. bxc6 {[%clk 0:02:49]}  bxc6 {[%clk 0:02:50]} 12. Qa4 {[%clk 0:02:43]}  Bxg2 {[%clk 0:02:48]} 13. Kxg2 {[%clk 0:02:42]}  a5 {[%clk 0:02:48]} 14. e4 {[%clk 0:02:29]}  Qe6 {[%clk 0:02:46]} 15. Nh4 {[%clk 0:02:22]}  Rc8 {[%clk 0:02:45]} 16. Nf5 {[%clk 0:02:21]}  Bf8 {[%clk 0:02:43]} 17. Rb6 {[%clk 0:02:10]}  Nbd7 {[%clk 0:02:39]} 18. Rb1 {[%clk 0:01:50]}  Nc5 {[%clk 0:02:37]} 19. Qc2 {[%clk 0:01:51]}  d5 {[%clk 0:02:32]} 20. Qe2 {[%clk 0:01:42]}  dxc4 {[%clk 0:02:27]} 21. dxc4 {[%clk 0:01:42]}  Rd8 {[%clk 0:02:25]} 22. f3 {[%clk 0:01:34]}  Nd3 {[%clk 0:02:24]} 23. Ne3 {[%clk 0:01:11]}  Bc5 {[%clk 0:02:20]} 24. Na4 {[%clk 0:01:05]}  Bxe3 {[%clk 0:02:07]} 25. Bxe3 {[%clk 0:01:03]}  Nb4 {[%clk 0:01:44]} 26. a3 {[%clk 0:00:55]}  Na6 {[%clk 0:01:40]} 27. Nb6 {[%clk 0:00:52]}  Rab8 {[%clk 0:01:36]} 28. c5 {[%clk 0:00:50]}  Nc7 {[%clk 0:01:34]} 29. Rfd1 {[%clk 0:00:47]}  Nb5 {[%clk 0:01:34]} 30. Qb2 {[%clk 0:00:37]}  Nd7 {[%clk 0:01:10]} 31. a4 {[%clk 0:00:36]}  Nc7 {[%clk 0:01:09]} 32. Rd6 {[%clk 0:00:25]}  Qe8 {[%clk 0:00:51]} 33. Rbd1 {[%clk 0:00:23]}  Nxb6 {[%clk 0:00:46]} 34. Rxd8 {[%clk 0:00:20]}  Rxd8 {[%clk 0:00:43]} 35. Rxd8 {[%clk 0:00:21]}  Qxd8 {[%clk 0:00:43]} 36. cxb6 {[%clk 0:00:22]}  Na6 {[%clk 0:00:41]} 37. b7 {[%clk 0:00:19]}  Nb8 {[%clk 0:00:37]} 38. Qb6 {[%clk 0:00:17]}  Qd3 {[%clk 0:00:30]} 39. Bf2 {[%clk 0:00:14]}  g5 {[%clk 0:00:28]} 40. g4 {[%clk 0:00:13]}  h5 {[%clk 0:00:26]} 41. h3 {[%clk 0:00:13]}  Qd7 {[%clk 0:00:21]} 42. Qa7 {[%clk 0:00:12]}  Qd6 {[%clk 0:00:19]} 43. Qxa5 {[%clk 0:00:11]}  Qd7 {[%clk 0:00:17]} 44. Qb6 {[%clk 0:00:11]}  Kg7 {[%clk 0:00:16]} 45. a5 {[%clk 0:00:11]}  c5 {[%clk 0:00:15]} 46. a6 {[%clk 0:00:11]}  c4 {[%clk 0:00:14]} 47. a7 {[%clk 0:00:11]}  Nc6 {[%clk 0:00:13]} 48. b8=Q {[%clk 0:00:11]}  Nxb8 {[%clk 0:00:04]} 49. axb8=Q {[%clk 0:00:12]} 1-0


[Site "https://www.chess.com"]

[Event "Titled Tuesday Blitz May 16 Late 2023"]
[White "Buchenau, Frank"]
[Black "Aggelis, Nikolaos"]
[WhiteFideId "4604350"]
[BlackFideId "4213220"]
[WhiteElo "2157"]
[BlackElo "2189"]
[Result "1-0"]
[Round "02"]
[TimeControl "180+2"]
[Date "2023.05.16"]
[WhiteClock "0:00:20"]
[BlackClock "0:00:55"]

1. e4 {[%clk 0:02:57]}  c6 {[%clk 0:02:52]} 2. Nf3 {[%clk 0:02:56]}  d5 {[%clk 0:02:50]} 3. Nc3 {[%clk 0:02:55]}  d4 {[%clk 0:02:41]} 4. Ne2 {[%clk 0:02:55]}  c5 {[%clk 0:02:38]} 5. c3 {[%clk 0:02:55]}  Nc6 {[%clk 0:02:33]} 6. cxd4 {[%clk 0:02:53]}  cxd4 {[%clk 0:02:26]} 7. Qa4 {[%clk 0:02:52]}  e5 {[%clk 0:02:14]} 8. Nxe5 {[%clk 0:02:50]}  Bd7 {[%clk 0:02:07]} 9. Nxc6 {[%clk 0:02:44]}  Bxc6 {[%clk 0:02:05]} 10. Qxd4 {[%clk 0:02:44]}  Qxd4 {[%clk 0:02:03]} 11. Nxd4 {[%clk 0:02:44]}  Bxe4 {[%clk 0:02:04]} 12. Bb5+ {[%clk 0:02:42]}  Kd8 {[%clk 0:02:04]} 13. O-O {[%clk 0:02:41]}  a6 {[%clk 0:02:04]} 14. Bc4 {[%clk 0:02:40]}  Bg6 {[%clk 0:01:59]} 15. Re1 {[%clk 0:02:33]}  Nf6 {[%clk 0:01:59]} 16. Nf3 {[%clk 0:02:30]}  b5 {[%clk 0:01:56]} 17. Bb3 {[%clk 0:02:24]}  Bb4 {[%clk 0:01:55]} 18. Ne5 {[%clk 0:02:18]}  Re8 {[%clk 0:01:53]} 19. Kf1 {[%clk 0:02:05]}  Kc7 {[%clk 0:01:40]} 20. a3 {[%clk 0:01:56]}  Ba5 {[%clk 0:01:34]} 21. Bxf7 {[%clk 0:01:47]}  Rxe5 {[%clk 0:01:28]} 22. Rxe5 {[%clk 0:01:46]}  Bxf7 {[%clk 0:01:28]} 23. Re7+ {[%clk 0:01:46]}  Kd6 {[%clk 0:01:24]} 24. Rxf7 {[%clk 0:01:45]}  Re8 {[%clk 0:01:23]} 25. b4 {[%clk 0:01:40]}  Bb6 {[%clk 0:01:22]} 26. Bb2 {[%clk 0:01:34]}  Ne4 {[%clk 0:01:22]} 27. d3 {[%clk 0:01:11]}  Nd2+ {[%clk 0:01:20]} 28. Kg1 {[%clk 0:01:10]}  Re2 {[%clk 0:01:20]} 29. Bc3 {[%clk 0:00:54]}  Nb3 {[%clk 0:01:16]} 30. Re1 {[%clk 0:00:41]}  Rc2 {[%clk 0:01:13]} 31. Be5+ {[%clk 0:00:37]}  Ke6 {[%clk 0:01:05]} 32. Rf4 {[%clk 0:00:27]}  Nc1 {[%clk 0:01:03]} 33. Bd4+ {[%clk 0:00:22]}  Ne2+ {[%clk 0:01:03]} 34. Kf1 {[%clk 0:00:21]}  Bxd4 {[%clk 0:01:01]} 35. Rxd4 {[%clk 0:00:21]}  Ra2 {[%clk 0:00:55]} 36. Rxe2+ {[%clk 0:00:20]} 1-0


[Site "https://www.chess.com"]